[Event "Gaprindashvili Cup Women I Stage 2020"]
[Site "Online"]
[Date "2020.11.04"]
[Round "6.7"]
[White "Didbaridze, Meri"]
[Black "Ashotia, Barbare"]
[Result "1/2-1/2"]
[ECO "D02"]
[WhiteElo "1264"]
[BlackElo "1076"]
[Annotator "NA RC"]
[PlyCount "175"]
[EventDate "2020.11.04"]
[EventType "swiss"]
[SourceTitle "playchess.com"]
[Source "ChessBase"]
[SourceQuality "1"]
[TimeControl "1500+5"]

1. d4 {[%emt 0:00:08]} d5 {[%emt 0:01:52]} 2. Bf4 {[%emt 0:00:06]} Nf6 {[%emt 0:00:05]} 3. e3 {[%emt 0:00:02]} Bf5 {[%emt 0:00:04]} 4. Nf3 {[%emt 0:00:05]} e6 {[%emt 0:00:07]} 5. h3 {[%emt 0:00:02]} Bd6 {[%emt 0:00:09]} 6. Bxd6 {[%emt 0:00:10]} cxd6 {[%emt 0:00:16]} 7. c3 {[%emt 0:00:09]} O-O {[%emt 0:00:07]} 8. Bd3 {[%emt 0:00:06]} Bxd3 {[%emt 0:00:00]} 9. Qxd3 {[%emt 0:00:05]} Nc6 {[%emt 0:00:00]} 10. O-O {[%emt 0:00:08]} e5 {[%emt 0:00:00]} 11. Qc2 {[%emt 0:00:29]} Rc8 {[%emt 0:00:00]} 12. Qe2 {[%emt 0:01:10]} Re8 {[%emt 0:00:00]} 13. Na3 {[%emt 0:01:32]} Qb6 {[%emt 0:00:00]} 14. Qb5 {[%emt 0:01:33]} Qxb5 {[%emt 0:01:42]} 15. Nxb5 {[%emt 0:00:05]} Red8 {[%emt 0:00:09]} 16. Rfe1 {[%emt 0:00:35]} e4 {[%emt 0:00:57]} 17. Nd2 {[%emt 0:00:22]} a6 {[%emt 0:00:10]} 18. Na3 {[%emt 0:00:05]} Na5 {[%emt 0:00:09]} 19. Kf1 {[%emt 0:01:05]} Nc4 {[%emt 0:00:15]} 20. Naxc4 {[%emt 0:00:19]} dxc4 {[%emt 0:00:03]} 21. Ke2 {[%emt 0:00:07]} d5 {[%emt 0:00:05]} 22. Nf1 {[%emt 0:00:05]} g6 {[%emt 0:00:15]} 23. Ng3 {[%emt 0:00:10]} b5 {[%emt 0:00:24]} 24. f3 {[%emt 0:00:05]} Re8 {[%emt 0:00:23]} 25. fxe4 {[%emt 0:01:09]} Nxe4 {[%emt 0:00:06]} 26. Kf3 {[%emt 0:01:27]} Rb8 {[%emt 0:00:45]} 27. Nxe4 {[%emt 0:00:25]} Rxe4 {[%emt 0:00:07]} 28. a3 {[%emt 0:00:43]} a5 {[%emt 0:00:33]} 29. Re2 {[%emt 0:01:26]} Kg7 {[%emt 0:00:18]} 30. Rf2 {[%emt 0:01:37]} Rbe8 {[%emt 0:00:45]} 31. Re2 {[%emt 0:00:32]} Rb8 {[%emt 0:00:07]} 32. Kf2 {[%emt 0:00:54]} Rb7 {[%emt 0:00:45]} 33. Ke1 {[%emt 0:00:41]} Rbe7 {[%emt 0:00:15]} 34. Kd2 {[%emt 0:00:04]} f5 {[%emt 0:00:07]} 35. Rf1 {[%emt 0:00:54]} Rb7 {[%emt 0:00:33]} 36. g3 {[%emt 0:01:53]} b4 {[%emt 0:00:49]} 37. axb4 {[%emt 0:00:05]} axb4 {[%emt 0:00:03]} 38. Ra1 {[%emt 0:01:08]} b3 {[%emt 0:01:19]} 39. Ra5 {[%emt 0:00:09]} Rd7 {[%emt 0:00:04]} 40. Rf2 {[%emt 0:00:40]} Kh6 {[%emt 0:01:17]} 41. Rf4 {[%emt 0:00:34]} Rxf4 {[%emt 0:00:12]} 42. exf4 {[%emt 0:00:03]} g5 {[%emt 0:00:03]} 43. Ra6+ {[%emt 0:00:23]} Kh5 {[%emt 0:00:31]} 44. Rf6 {[%emt 0:00:11]} gxf4 {[%emt 0:00:10]} 45. Rxf5+ {[%emt 0:00:04]} Kg6 {[%emt 0:00:04]} 46. Rxf4 {[%emt 0:00:02]} Ra7 {[%emt 0:00:34]} 47. Rf2 {[%emt 0:00:15]} Ra1 {[%emt 0:00:41]} 48. Ke3 {[%emt 0:00:43]} Re1+ {[%emt 0:00:41]} 49. Kf4 {[%emt 0:00:09]} Rc1 {[%emt 0:00:41]} 50. Ke3 {[%emt 0:01:00]} Re1+ {[%emt 0:00:18]} 51. Re2 {[%emt 0:00:06]} Rg1 {[%emt 0:00:18]} 52. Kf2 {[%emt 0:00:18]} Rb1 {[%emt 0:00:11]} 53. g4 {[%emt 0:00:16]} Rc1 {[%emt 0:00:20]} 54. Rd2 {[%emt 0:01:10]} Rc2 {[%emt 0:00:25]} 55. Ke3 {[%emt 0:00:08]} Kg5 {[%emt 0:00:26]} 56. Rxc2 {[%emt 0:00:33]} bxc2 {[%emt 0:00:03]} 57. Kd2 {[%emt 0:00:01]} Kh4 {[%emt 0:00:02]} 58. Kxc2 {[%emt 0:00:02]} Kxh3 {[%emt 0:00:02]} 59. b4 {[%emt 0:00:02]} cxb3+ {[%emt 0:00:02]} 60. Kxb3 {[%emt 0:00:04]} Kxg4 {[%emt 0:00:02]} 61. c4 {[%emt 0:00:02]} dxc4+ {[%emt 0:00:02]} 62. Kxc4 {[%emt 0:00:02]} h5 {[%emt 0:00:03]} 63. d5 {[%emt 0:00:03]} h4 {[%emt 0:00:02]} 64. d6 {[%emt 0:00:03]} h3 {[%emt 0:00:01]} 65. d7 {[%emt 0:00:02]} h2 {[%emt 0:00:02]} 66. d8=Q {[%emt 0:00:04]} h1=Q {[%emt 0:00:02]} 67. Qg8+ {[%emt 0:00:03]} Kf5 {[%emt 0:00:05]} 68. Qf8+ {[%emt 0:00:03]} Kg5 {[%emt 0:00:04]} 69. Qg8+ {[%emt 0:00:03]} Kf6 {[%emt 0:00:04]} 70. Qf8+ {[%emt 0:00:03]} Kg5 {[%emt 0:00:03]} 71. Qg7+ {[%emt 0:00:02]} Kf5 {[%emt 0:00:03]} 72. Qf7+ {[%emt 0:00:02]} Kg5 {[%emt 0:00:03]} 73. Qg7+ {[%emt 0:00:02]} Kf5 {[%emt 0:00:06]} 74. Qf7+ {[%emt 0:00:03]} Kg5 {[%emt 0:00:02]} 75. Qe7+ {[%emt 0:00:02]} Kf5 {[%emt 0:00:05]} 76. Qd7+ {[%emt 0:00:02]} Kg5 {[%emt 0:00:02]} 77. Qd8+ {[%emt 0:00:02]} Kf5 {[%emt 0:00:06]} 78. Qf8+ {[%emt 0:00:04]} Kg6 {[%emt 0:00:04]} 79. Qg8+ {[%emt 0:00:04]} Kf6 {[%emt 0:00:03]} 80. Qf8+ {[%emt 0:00:02]} Kg6 {[%emt 0:00:06]} 81. Qe8+ {[%emt 0:00:02]} Kf6 {[%emt 0:00:05]} 82. Qd8+ {[%emt 0:00:04]} Kg6 {[%emt 0:00:03]} 83. Qe8+ {[%emt 0:00:04]} Kf6 {[%emt 0:00:06]} 84. Qf8+ {[%emt 0:00:06]} Kg6 {[%emt 0:00:05]} 85. Qe8+ {[%emt 0:00:03]} Kf6 {[%emt 0:00:03]} 86. Qf8+ {[%emt 0:00:03]} Kg6 {[%emt 0:00:03]} 87. Qg8+ {[%emt 0:00:07]} Kf6 {[%emt 0:00:03]} 88. Qf8+ {[%emt 0:00:10]} 1/2-1/2

[Event "Gaprindashvili Cup Women I Stage 2020"]
[Site "Online"]
[Date "2020.11.04"]
[Round "6.9"]
[White "Gvatua, Mariam"]
[Black "Limar, Ana"]
[Result "1/2-1/2"]
[ECO "E05"]
[WhiteElo "1343"]
[BlackElo "1312"]
[Annotator "NA RC"]
[PlyCount "95"]
[EventDate "2020.11.04"]
[EventType "swiss"]
[SourceTitle "playchess.com"]
[Source "ChessBase"]
[SourceQuality "1"]
[TimeControl "1500+5"]

1. d4 {[%emt 0:00:31]} d5 {[%emt 0:00:04]} 2. c4 {[%emt 0:00:04]} e6 {[%emt 0:00:04]} 3. Nf3 {[%emt 0:00:02]} Nf6 {[%emt 0:00:03]} 4. g3 {[%emt 0:00:06]} Be7 {[%emt 0:00:17]} 5. Bg2 {[%emt 0:00:02]} O-O {[%emt 0:00:16]} 6. O-O {[%emt 0:00:05]} dxc4 {[%emt 0:00:50]} 7. Qc2 {[%emt 0:00:04]} Nc6 {[%emt 0:02:22]} 8. Qxc4 {[%emt 0:00:04]} Bd6 {[%emt 0:01:04]} 9. Nc3 {[%emt 0:00:11]} e5 {[%emt 0:00:55]} 10. dxe5 {[%emt 0:00:07]} Nxe5 {[%emt 0:00:11]} 11. Nxe5 {[%emt 0:00:02]} Bxe5 {[%emt 0:00:04]} 12. Bg5 {[%emt 0:00:04]} Be6 {[%emt 0:00:33]} 13. Qb4 {[%emt 0:00:17]} Bd5 {[%emt 0:02:01]} 14. Nxd5 {[%emt 0:00:55]} Nxd5 {[%emt 0:00:16]} 15. Qd2 {[%emt 0:00:09]} Bf6 {[%emt 0:00:56]} 16. Qxd5 {[%emt 0:00:47]} Qxd5 {[%emt 0:00:10]} 17. Bxd5 {[%emt 0:00:04]} Bxg5 {[%emt 0:00:02]} 18. Rfd1 {[%emt 0:00:27]} c6 {[%emt 0:00:11]} 19. Bb3 {[%emt 0:00:08]} Rad8 {[%emt 0:00:04]} 20. e4 {[%emt 0:00:05]} Rxd1+ {[%emt 0:00:33]} 21. Rxd1 {[%emt 0:00:05]} Rd8 {[%emt 0:00:03]} 22. Rxd8+ {[%emt 0:00:04]} Bxd8 {[%emt 0:00:03]} 23. e5 {[%emt 0:00:24]} Kf8 {[%emt 0:00:12]} 24. e6 {[%emt 0:00:16]} f5 {[%emt 0:01:14]} 25. Kg2 {[%emt 0:00:06]} b5 {[%emt 0:00:15]} 26. a4 {[%emt 0:00:28]} a6 {[%emt 0:00:29]} 27. Kf3 {[%emt 0:00:06]} c5 {[%emt 0:01:13]} 28. axb5 {[%emt 0:00:11]} axb5 {[%emt 0:00:07]} 29. Kf4 {[%emt 0:00:03]} c4 {[%emt 0:00:31]} 30. Bc2 {[%emt 0:00:05]} g6 {[%emt 0:00:09]} 31. Ke5 {[%emt 0:00:03]} Ke7 {[%emt 0:00:04]} 32. Kd5 {[%emt 0:00:19]} Bb6 {[%emt 0:00:52]} 33. f3 {[%emt 0:00:09]} Bg1 {[%emt 0:02:48]} 34. h3 {[%emt 0:00:04]} Bf2 {[%emt 0:00:13]} 35. g4 {[%emt 0:00:13]} fxg4 {[%emt 0:00:11]} 36. hxg4 {[%emt 0:00:35]} Bg3 {[%emt 0:01:26]} 37. Kc5 {[%emt 0:00:34]} Kxe6 {[%emt 0:00:15]} 38. Kxb5 {[%emt 0:00:02]} h5 {[%emt 0:00:26]} 39. Kxc4 {[%emt 0:01:01]} h4 {[%emt 0:00:12]} 40. Bd3 {[%emt 0:01:54]} h3 {[%emt 0:00:04]} 41. Bf1 {[%emt 0:00:04]} h2 {[%emt 0:00:04]} 42. Bg2 {[%emt 0:00:02]} Kd6 {[%emt 0:00:48]} 43. b4 {[%emt 0:02:37]} g5 {[%emt 0:00:27]} 44. Kd4 {[%emt 0:00:27]} Bf4 {[%emt 0:01:33]} 45. Kc4 {[%emt 0:00:26]} Kc6 {[%emt 0:00:26]} 46. Kd4 {[%emt 0:00:17]} Kb5 {[%emt 0:00:40]} 47. Kd3 {[%emt 0:00:51]} Kxb4 {[%emt 0:00:12]} 48. Ke2 {[%emt 0:00:02]} 1/2-1/2

[Event "Gaprindashvili Cup Women I Stage 2020"]
[Site "Online"]
[Date "2020.11.04"]
[Round "6.10"]
[White "Tsetskhladze, Mariam"]
[Black "Limar, Maria"]
[Result "0-1"]
[ECO "B52"]
[WhiteElo "1477"]
[BlackElo "1229"]
[Annotator "NA RC"]
[PlyCount "72"]
[EventDate "2020.11.04"]
[EventType "swiss"]
[SourceTitle "playchess.com"]
[Source "ChessBase"]
[SourceQuality "1"]
[TimeControl "1500+5"]

1. e4 {[%emt 0:01:28]} c5 {[%emt 0:00:04]} 2. Nf3 {[%emt 0:00:03]} d6 {[%emt 0:00:04]} 3. Bb5+ {[%emt 0:00:04]} Bd7 {[%emt 0:00:20]} 4. Bxd7+ {[%emt 0:00:05]} Qxd7 {[%emt 0:00:46]} 5. c4 {[%emt 0:00:04]} Nf6 {[%emt 0:00:07]} 6. Nc3 {[%emt 0:00:14]} Nc6 {[%emt 0:00:07]} 7. d4 {[%emt 0:00:13]} cxd4 {[%emt 0:00:30]} 8. Nxd4 {[%emt 0:00:06]} g6 {[%emt 0:00:18]} 9. f3 {[%emt 0:00:05]} Bg7 {[%emt 0:00:15]} 10. Be3 {[%emt 0:00:07]} O-O {[%emt 0:00:11]} 11. O-O {[%emt 0:00:11]} Rac8 {[%emt 0:00:45]} 12. b3 {[%emt 0:00:48]} Qd8 {[%emt 0:00:47]} 13. Qd2 {[%emt 0:00:47]} Re8 {[%emt 0:00:22]} 14. Rad1 {[%emt 0:00:28]} a6 {[%emt 0:02:01]} 15. Nd5 {[%emt 0:00:59]} Nxd5 {[%emt 0:03:48]} 16. exd5 {[%emt 0:00:20]} Ne5 {[%emt 0:00:12]} 17. Bg5 {[%emt 0:01:01]} Qb6 {[%emt 0:01:03]} 18. Kh1 {[%emt 0:00:11]} Qc5 {[%emt 0:02:26]} 19. a4 {[%emt 0:01:42]} Qb6 {[%emt 0:01:06]} 20. Rfe1 {[%emt 0:00:52]} Qd8 {[%emt 0:01:00]} 21. Re2 {[%emt 0:00:23]} Nd7 {[%emt 0:04:32]} 22. Rde1 {[%emt 0:00:58]} Nf6 {[%emt 0:00:06]} 23. Re3 {[%emt 0:06:12]} Rc7 {[%emt 0:00:52]} 24. Ne2 {[%emt 0:00:40]} Rd7 {[%emt 0:02:00]} 25. Ng3 {[%emt 0:00:12]} Kf8 {[%emt 0:00:32]} 26. Ne4 {[%emt 0:00:21]} Ng8 {[%emt 0:00:53]} 27. Nf2 {[%emt 0:02:07]} b5 {[%emt 0:00:58]} 28. Qb4 {[%emt 0:01:57]} bxc4 {[%emt 0:00:35]} 29. Qxc4 {[%emt 0:00:02]} Qc8 {[%emt 0:00:29]} 30. Rc1 {[%emt 0:02:29]} Qxc4 {[%emt 0:00:10]} 31. Rxc4 {[%emt 0:00:03]} Rb8 {[%emt 0:00:04]} 32. Re2 {[%emt 0:00:35]} Rdd8 {[%emt 0:00:08]} 33. b4 {[%emt 0:00:25]} Rdc8 {[%emt 0:00:06]} 34. Rec2 {[%emt 0:00:08]} Rxc4 {[%emt 0:00:07]} 35. Rxc4 {[%emt 0:00:02]} Nf6 {[%emt 0:00:04]} 36. Bxf6 {[%emt 0:01:15]} Bxf6 {[%emt 0:00:04]} 0-1

[Event "Gaprindashvili Cup Women I Stage 2020"]
[Site "Online"]
[Date "2020.11.04"]
[Round "6.11"]
[White "Mgeladze, Kesaria"]
[Black "Dolakidze, Mariam"]
[Result "0-1"]
[ECO "C11"]
[WhiteElo "1380"]
[BlackElo "1416"]
[Annotator "NA RC"]
[PlyCount "130"]
[EventDate "2020.11.04"]
[EventType "swiss"]
[SourceTitle "playchess.com"]
[Source "ChessBase"]
[SourceQuality "1"]
[TimeControl "1500+5"]

1. e4 {[%emt 0:00:00]} e6 {[%emt 0:00:03]} 2. d4 {[%emt 0:00:06]} d5 {[%emt 0:00:10]} 3. Nc3 {[%emt 0:00:02]} Nf6 {[%emt 0:00:04]} 4. e5 {[%emt 0:00:04]} Nfd7 {[%emt 0:00:03]} 5. f4 {[%emt 0:00:02]} c5 {[%emt 0:00:03]} 6. Nf3 {[%emt 0:00:05]} Nc6 {[%emt 0:00:02]} 7. Be3 {[%emt 0:00:04]} Qb6 {[%emt 0:00:09]} 8. Qd2 {[%emt 0:00:48]} Qxb2 {[%emt 0:00:36]} 9. Rb1 {[%emt 0:00:14]} Qa3 {[%emt 0:00:04]} 10. Rb3 {[%emt 0:03:11]} Qa5 {[%emt 0:00:07]} 11. Nb5 {[%emt 0:01:29]} Qxd2+ {[%emt 0:00:03]} 12. Kxd2 {[%emt 0:00:05]} Kd8 {[%emt 0:00:01]} 13. dxc5 {[%emt 0:00:33]} Nxc5 {[%emt 0:00:29]} 14. Bxc5 {[%emt 0:00:39]} Bxc5 {[%emt 0:00:03]} 15. Ng5 {[%emt 0:00:07]} Ke7 {[%emt 0:00:03]} 16. g3 {[%emt 0:01:44]} h6 {[%emt 0:00:04]} 17. Nf3 {[%emt 0:00:05]} a6 {[%emt 0:00:10]} 18. Nc3 {[%emt 0:00:16]} Bb4 {[%emt 0:00:16]} 19. Kc1 {[%emt 0:00:17]} Bxc3 {[%emt 0:00:05]} 20. Rxc3 {[%emt 0:00:04]} Bd7 {[%emt 0:00:02]} 21. Rb3 {[%emt 0:00:13]} b5 {[%emt 0:00:16]} 22. Bg2 {[%emt 0:00:26]} Na5 {[%emt 0:00:05]} 23. Rd3 {[%emt 0:00:08]} Rhc8 {[%emt 0:00:11]} 24. Nd4 {[%emt 0:00:06]} Nc6 {[%emt 0:00:29]} 25. Nb3 {[%emt 0:00:15]} Nb4 {[%emt 0:00:03]} 26. Rd2 {[%emt 0:00:09]} Nxa2+ {[%emt 0:00:03]} 27. Kb2 {[%emt 0:00:06]} Nb4 {[%emt 0:00:01]} 28. Ra1 {[%emt 0:00:19]} Rc7 {[%emt 0:00:31]} 29. c3 {[%emt 0:00:15]} Nc6 {[%emt 0:00:03]} 30. Bf1 {[%emt 0:01:00]} Nb8 {[%emt 0:01:09]} 31. Nd4 {[%emt 0:00:17]} Raa7 {[%emt 0:00:23]} 32. Kb3 {[%emt 0:00:31]} Nc6 {[%emt 0:00:20]} 33. Nf3 {[%emt 0:00:48]} Rcb7 {[%emt 0:01:32]} 34. Rda2 {[%emt 0:00:21]} Rb6 {[%emt 0:00:02]} 35. Kc2 {[%emt 0:01:40]} Bc8 {[%emt 0:00:26]} 36. Rb1 {[%emt 0:00:32]} Rc7 {[%emt 0:00:11]} 37. Kd3 {[%emt 0:00:10]} Nb8 {[%emt 0:02:26]} 38. Nd4 {[%emt 0:00:37]} Nd7 {[%emt 0:00:08]} 39. Rab2 {[%emt 0:01:14]} Nc5+ {[%emt 0:00:06]} 40. Kc2 {[%emt 0:00:06]} Ne4 {[%emt 0:00:44]} 41. Rb3 {[%emt 0:00:13]} Rbb7 {[%emt 0:00:17]} 42. Bg2 {[%emt 0:00:20]} Nc5 {[%emt 0:00:16]} 43. R3b2 {[%emt 0:00:05]} Na4 {[%emt 0:00:07]} 44. Rb3 {[%emt 0:00:03]} Rc5 {[%emt 0:00:37]} 45. Ne2 {[%emt 0:00:29]} Rbc7 {[%emt 0:00:11]} 46. Kd2 {[%emt 0:00:43]} Bb7 {[%emt 0:00:17]} 47. Bf3 {[%emt 0:00:45]} Rc4 {[%emt 0:00:20]} 48. Bg2 {[%emt 0:00:11]} Nc5 {[%emt 0:00:06]} 49. R3b2 {[%emt 0:00:04]} Ne4+ {[%emt 0:00:02]} 50. Bxe4 {[%emt 0:00:05]} dxe4 {[%emt 0:00:13]} 51. Rb4 {[%emt 0:00:22]} Bd5 {[%emt 0:00:33]} 52. Rxc4 {[%emt 0:00:37]} Bxc4 {[%emt 0:00:07]} 53. Nd4 {[%emt 0:00:06]} Kd7 {[%emt 0:01:01]} 54. Ra1 {[%emt 0:00:30]} Ra7 {[%emt 0:00:03]} 55. Ke3 {[%emt 0:00:19]} Bd3 {[%emt 0:00:07]} 56. Nb3 {[%emt 0:00:03]} Kc6 {[%emt 0:00:10]} 57. Nc1 {[%emt 0:00:21]} a5 {[%emt 0:00:24]} 58. Nxd3 {[%emt 0:00:11]} exd3 {[%emt 0:00:03]} 59. Kxd3 {[%emt 0:00:02]} a4 {[%emt 0:00:02]} 60. Kd4 {[%emt 0:00:15]} Rd7+ {[%emt 0:00:03]} 61. Ke3 {[%emt 0:00:04]} Kc5 {[%emt 0:00:02]} 62. g4 {[%emt 0:00:54]} Kc4 {[%emt 0:00:07]} 63. Ra3 {[%emt 0:00:02]} Rd3+ {[%emt 0:00:03]} 64. Ke4 {[%emt 0:00:08]} Rxc3 {[%emt 0:00:06]} 65. Ra1 {[%emt 0:00:01]} a3 {[%emt 0:00:11]} 0-1

[Event "Gaprindashvili Cup Women I Stage 2020"]
[Site "Online"]
[Date "2020.11.04"]
[Round "7.1"]
[White "Kirtadze, Anastasia"]
[Black "Esadze, Tamari"]
[Result "0-1"]
[ECO "B95"]
[WhiteElo "1810"]
[BlackElo "1889"]
[Annotator "NA"]
[PlyCount "50"]
[EventDate "2020.11.04"]
[EventType "swiss"]
[SourceTitle "playchess.com"]
[Source "ChessBase"]
[SourceQuality "1"]
[TimeControl "1500+5"]

{[%evp 27,50,-59,-78,-89,-25,-175,-164,-195,-199,-328,-232,-269,-240,-456,-432,-439,-449,-506,-516,-533,-556,-762,-865,-921,-532]} 1. e4 {[%emt 0:00:04]} c5 {[%emt 0:00:04]} 2. Nf3 {[%emt 0:00:03]} d6 {[%emt 0:00:02]} 3. d4 {[%emt 0:00:06]} cxd4 {[%emt 0:00:03]} 4. Nxd4 {[%emt 0:00:04]} Nf6 {[%emt 0:00:02]} 5. Nc3 {[%emt 0:00:02]} a6 {[%emt 0:00:03]} 6. Bg5 {[%emt 0:00:08]} e6 {[%emt 0:00:03]} 7. Qd2 {[%emt 0:00:22]} Be7 {[%emt 0:00:26]} 8. Be2 {[%emt 0:00:55]} O-O {[%emt 0:00:21]} 9. O-O {[%emt 0:00:23]} h6 {[%emt 0:00:37] B95: Sicilian Najdorf: 6 Bg5 e6, unusual White 7th moves.} 10. Be3 {[%emt 0:00:25]} Qc7 {[%emt 0:00:23]} 11. f4 {[%emt 0:00:56]} b5 {[%emt 0:01:05] [#]} 12. e5 $146 {[%emt 0:06:52]} ({Predecessor:} 12. Bf3 Bb7 13. e5 dxe5 14. Bxb7 Qxb7 15. fxe5 Ng4 16. Bf4 b4 17. Nce2 Nd7 18. h3 Ngxe5 {0-1 (32) Parsons,C (1757)-Taylor,K (2024) ICCF email 2018}) 12... dxe5 {[%emt 0:00:42]} 13. fxe5 {[%emt 0:00:05]} Nfd7 {[%emt 0:01:28]} 14. Bf3 {[%emt 0:04:57] [#]} Bb7 $1 {[%emt 0:00:32]} 15. Bxb7 {[%emt 0:00:06]} Qxb7 {[%emt 0:00:02]} 16. Nce2 {[%emt 0:02:24]} (16. Bf4 $17 {might work better.}) 16... Nxe5 {[%emt 0:01:41]} 17. Bf4 {[%emt 0:00:25]} Ng6 {[%emt 0:00:54]} 18. Qe3 {[%emt 0:00:45]} (18. Be3 {was worth a try.}) 18... Nd7 {[%emt 0:01:31]} 19. Bg3 {[%emt 0:03:46]} Rac8 {[%emt 0:01:04]} 20. Nf4 $2 {[%emt 0:00:58]} (20. Qb3) 20... Nxf4 {[%emt 0:01:07]} 21. Bxf4 {[%emt 0:00:14]} Bc5 {[%emt 0:01:04]} 22. c3 {[%emt 0:02:11] [#]} e5 $1 {[%emt 0:02:03]} 23. Bxe5 {[%emt 0:00:18]} Rfe8 {[%emt 0:00:07]} 24. Rf5 {[%emt 0:00:13]} f6 {[%emt 0:00:17]} ({Weaker is} 24... Rxe5 25. Rxe5 Nxe5 26. Qxe5 $17) 25. Qg3 {[%emt 0:00:10]} Rxe5 $19 {[%emt 0:00:27]} 0-1

[Event "Gaprindashvili Cup Women I Stage 2020"]
[Site "Online"]
[Date "2020.11.04"]
[Round "7.2"]
[White "Maghlakelidze, Rusudan"]
[Black "Bedoshvili, Dea"]
[Result "0-1"]
[ECO "D45"]
[WhiteElo "1613"]
[BlackElo "1667"]
[Annotator "NA RC"]
[PlyCount "134"]
[EventDate "2020.11.04"]
[EventType "swiss"]
[SourceTitle "playchess.com"]
[Source "ChessBase"]
[SourceQuality "1"]
[TimeControl "1500+5"]

1. c4 {[%emt 0:00:00]} c6 {[%emt 0:00:06]} 2. Nc3 {[%emt 0:00:11]} d5 {[%emt 0:00:09]} 3. e3 {[%emt 0:00:02]} e6 {[%emt 0:00:24]} 4. b3 {[%emt 0:00:04]} Bd6 {[%emt 0:00:22]} 5. Bb2 {[%emt 0:00:04]} Nf6 {[%emt 0:00:03]} 6. Qc2 {[%emt 0:00:13]} O-O {[%emt 0:00:31]} 7. Nf3 {[%emt 0:00:08]} Qe7 {[%emt 0:00:17]} 8. d4 {[%emt 0:00:08]} Nbd7 {[%emt 0:00:20]} 9. Be2 {[%emt 0:00:38]} b6 {[%emt 0:00:52]} 10. O-O {[%emt 0:00:32]} Bb7 {[%emt 0:00:06]} 11. Rfd1 {[%emt 0:01:44]} Rac8 {[%emt 0:00:31]} 12. Rac1 {[%emt 0:00:13]} Rfd8 {[%emt 0:01:11]} 13. cxd5 {[%emt 0:00:39]} exd5 {[%emt 0:00:06]} 14. Qb1 {[%emt 0:02:13]} Re8 {[%emt 0:00:18]} 15. h3 {[%emt 0:00:53]} Ne4 {[%emt 0:00:53]} 16. Nxe4 {[%emt 0:01:59]} dxe4 {[%emt 0:00:04]} 17. Nd2 {[%emt 0:00:04]} Bb8 {[%emt 0:00:50]} 18. g3 {[%emt 0:00:44]} Nf6 {[%emt 0:00:47]} 19. Bf1 {[%emt 0:00:31]} Nd5 {[%emt 0:00:41]} 20. Bg2 {[%emt 0:03:00]} f5 {[%emt 0:00:08]} 21. Nc4 {[%emt 0:00:32]} Qf6 {[%emt 0:01:14]} 22. Ne5 {[%emt 0:00:24]} Qe6 {[%emt 0:05:09]} 23. g4 {[%emt 0:04:08]} g6 {[%emt 0:02:15]} 24. Kh1 {[%emt 0:03:53]} Bxe5 {[%emt 0:02:48]} 25. dxe5 {[%emt 0:00:04]} fxg4 {[%emt 0:00:10]} 26. hxg4 {[%emt 0:00:19]} Qxg4 {[%emt 0:00:19]} 27. Qxe4 {[%emt 0:00:05]} Qh5+ {[%emt 0:01:45]} 28. Kg1 {[%emt 0:00:04]} Re6 {[%emt 0:00:09]} 29. Bf3 {[%emt 0:02:17]} Qg5+ {[%emt 0:03:01]} 30. Qg4 {[%emt 0:00:04]} Qe7 {[%emt 0:00:02]} 31. Qg3 {[%emt 0:00:23]} Qf7 {[%emt 0:01:24]} 32. Bg4 {[%emt 0:00:05]} Rf8 {[%emt 0:00:11]} 33. Bxe6 {[%emt 0:00:08]} Qxe6 {[%emt 0:00:01]} 34. Rc4 {[%emt 0:00:50]} c5 {[%emt 0:00:10]} 35. f4 {[%emt 0:00:29]} Ba6 {[%emt 0:00:25]} 36. Rc2 {[%emt 0:00:07]} Bb5 {[%emt 0:00:06]} 37. Rcd2 {[%emt 0:00:03]} Bc6 {[%emt 0:00:02]} 38. Qf3 {[%emt 0:00:05]} Ne7 {[%emt 0:00:06]} 39. Qf2 {[%emt 0:00:06]} Nf5 {[%emt 0:00:05]} 40. e4 {[%emt 0:00:02]} Bxe4 {[%emt 0:00:04]} 41. Kf1 {[%emt 0:00:07]} Qc6 {[%emt 0:00:03]} 42. Ke1 {[%emt 0:00:02]} a6 {[%emt 0:00:05]} 43. Re2 {[%emt 0:00:02]} Bf3 {[%emt 0:00:04]} 44. e6 {[%emt 0:00:12]} Bxe2 {[%emt 0:00:03]} 45. Kxe2 {[%emt 0:00:02]} Qxe6+ {[%emt 0:00:03]} 46. Be5 {[%emt 0:00:02]} Nd4+ {[%emt 0:00:07]} 47. Ke3 {[%emt 0:00:10]} Qh3+ {[%emt 0:00:07]} 48. Ke4 {[%emt 0:00:04]} Qf5+ {[%emt 0:00:04]} 49. Ke3 {[%emt 0:00:01]} Re8 {[%emt 0:00:04]} 50. Qg2 {[%emt 0:00:08]} Qe6 {[%emt 0:00:03]} 51. Qe4 {[%emt 0:00:04]} Nc6 {[%emt 0:00:06]} 52. Rd6 {[%emt 0:00:03]} Qh3+ {[%emt 0:00:02]} 53. Kd2 {[%emt 0:00:06]} Nxe5 {[%emt 0:00:05]} 54. fxe5 {[%emt 0:00:06]} Qh2+ {[%emt 0:00:04]} 55. Kd3 {[%emt 0:00:01]} Qxe5 {[%emt 0:00:03]} 56. Qxe5 {[%emt 0:00:02]} Rxe5 {[%emt 0:00:03]} 57. Rxb6 {[%emt 0:00:01]} g5 {[%emt 0:00:10]} 58. Rxa6 {[%emt 0:00:02]} g4 {[%emt 0:00:03]} 59. Rf6 {[%emt 0:00:02]} g3 {[%emt 0:00:03]} 60. Rf3 {[%emt 0:00:06]} Rg5 {[%emt 0:00:08]} 61. Rf1 {[%emt 0:00:02]} h5 {[%emt 0:00:03]} 62. a4 {[%emt 0:00:04]} h4 {[%emt 0:00:02]} 63. a5 {[%emt 0:00:01]} h3 {[%emt 0:00:05]} 64. a6 {[%emt 0:00:02]} Rg7 {[%emt 0:00:05]} 65. Rf3 {[%emt 0:00:36]} g2 {[%emt 0:00:04]} 66. a7 {[%emt 0:00:01]} Rxa7 {[%emt 0:00:09]} 67. Rg3+ {[%emt 0:00:03]} Rg7 {[%emt 0:00:04]} 0-1